Cogmind - Beta 15 @@@ ROGUE MODE // 2025.07.10 @ 12:04:14 Player: Yggdrasil Burnes Result: Destroyed by D-53 Grenadier with Mini Grenade Launcher Performance ------------- Evolutions (0) 0 Regions Visited (2) 400 Robots Destroyed (10) 50 Value Destroyed (125) 125 Prototype IDs (0) 0 Alien Tech Used (0) 0 Bonus (0) 0 TOTAL SCORE: 575 Bonus ------- None Cogmind --------- Core Integrity 0/250 Matter 300/300 Energy 249/250 System Corruption 0% Temperature Cool (0) Movement Core (250) Ox4 Location -10/Mines Parts ------- > --- POWER (1) -------- Ion Engine > --- PROPULSION (2) --- (None) > --- UTILITY (2) ------ Small Storage Unit Tractor Beam > --- WEAPON (2) ------- Light Assault Rifle Light Cannon > --- INVENTORY (8) ---- Ion Engine Light Ion Engine Heat Sink Structural Scanner Sensor Array Seismic Detector Peak State ------------ > --- POWER ------------ Light Ion Engine > --- PROPULSION ------- Aluminum Leg Aluminum Leg > --- UTILITY ---------- Small Storage Unit Tractor Beam > --- WEAPON ----------- EM Pulse Gun Light Assault Rifle > --- INVENTORY -------- Ion Engine Light Treads Light Treads EM Pulse Gun [Rating: 7] Favorites ----------- Power Light Ion Engine Engine Light Ion Engine Propulsion Aluminum Leg Leg Aluminum Leg Utility Tractor Beam Device Tractor Beam Storage Small Storage Unit Weapon Light Assault Rifle Energy Gun EM Pulse Gun Ballistic Gun Light Assault Rifle Ballistic Cannon Light Cannon Build | -11 -10 -10 ------- Run | Yrd Mat Min Slots Evolved . | . . . Power . | . . . Propulsion . | . . . Utility . | . . . Weapon . | . . . Parts Attached 11 | 5 2 4 Power 2 | 1 . 1 Engine 2 | 1 . 1 Core . | . . . Reactor . | . . . Propulsion 2 | 2 . . Treads . | . . . Leg 2 | 2 . . Wheel . | . . . Hover . | . . . Flight . | . . . Utility 2 | . 2 . Device 1 | . 1 . Storage 1 | . 1 . Processor . | . . . Hackware . | . . . Protection . | . . . Artifact . | . . . Weapon 5 | 2 . 3 Energy Gun 2 | 1 . 1 Energy Cannon . | . . . Ballistic Gun 2 | 1 . 1 Ballistic Cannon 1 | . . 1 Launcher . | . . . Special Weapon . | . . . Impact Weapon . | . . . Slashing Weapon . | . . . Piercing Weapon . | . . . Special Melee Weapon . | . . . Unidentified Prototypes . | . . . Parts Lost 6 | . . 6 Power 1 | . . 1 Propulsion 2 | . . 2 Utility . | . . . Weapon 3 | . . 3 Highest Loss Streak 6 | . . 6 To Critical Strikes . | . . . Average Backups 5 | 3 5 6 Power 1 | . 1 1 Propulsion 1 | . 1 . Utility 1 | . 1 3 Weapon 1 | 1 1 2 Tool/Special . | . . . Unused Backups 7 | . 3 4 Power 1 | . . 1 Propulsion 2 | . 2 . Utility 4 | . 1 3 Weapon . | . . . Tool/Special . | . . . Average Slot Usage (%) 92 | . 92 93 Engine 13 | . 14 11 Leg 27 | . 28 27 Device 13 | . 13 14 Storage 10 | . 8 14 Energy Gun 13 | . 14 11 Ballistic Gun 13 | . 14 11 Peak Build Rating 7 | 5 7 7 Average Rating 6 | 3 6 6 On Entrance 4 | . 5 7 Naked Turns . | . . . Heaviest Build 15 | 6 12 15 Greatest Support 20 | 20 20 20 Greatest Overweight (x) 4 | . . 4 Average Overweight (x) . | . . . Largest Inventory Capacity 8 | 5 8 8 Average Capacity 6 | 5 6 8 Most Carried 8 | 5 8 8 Average Carried 5 | 3 5 6 Final Capacity 8 | 5 8 8 Final Carried 8 | 5 8 6 Class Distribution -------------------- 100% | Mutant Dominant Class ---------------- Mutant | -10/Materials Mutant | -10/Mines Resources | -11 -10 -10 ----------- Run | Yrd Mat Min Matter Collected 356 | 227 69 60 Remotely 129 | . 69 60 Salvage Created 159 | . 69 90 Parts 22 | . 13 9 Haulers Intercepted . | . . . Recyclers Shooed . | . . . Parts Field Recycled . | . . . Retrieved Matter . | . . . Parts Self-Destructed . | . . . Prevented . | . . . Kills | -11 -10 -10 ------- Run | Yrd Mat Min Combat Hostiles Destroyed 8 | . 3 5 Guns 4 | . . 4 Cannons 1 | . . 1 AOE 3 | . 3 . Classes Destroyed 4 | . 3 1 Builder 1 | . 1 . Operator 1 | . 1 . Swarmer 7 | . 3 4 Grunt 1 | . . 1 Best Kill Streak 3 | . 3 3 Combat Bots Only 3 | . 3 3 Max Kills in Single Turn 3 | . 3 1 Gunslinging . | . . . Exploded 3 | . 3 . Melee . | . . . Uniques/NPCs Destroyed . | . . . Combat | -11 -10 -10 -------- Run | Yrd Mat Min Hostile Shots Fired 116 | . 2 114 Missed 41 | . 2 39 Hits 75 | . . 75 Projectile 75 | . . 75 AOE 6 | . . 6 Damage Taken 867 | . . 867 Core 255 | . . 255 Absorbed by Shields . | . . . Core Remaining (%) 100 | 100 . . Volleys Fired 24 | . 7 17 Largest 2 | . 2 2 Hottest 60 | . 60 60 Shots Fired 46 | . 14 32 Gun 41 | . 14 27 Cannon 5 | . . 5 Launcher . | . . . Special . | . . . Kinetic 27 | . 7 20 Thermal . | . . . Explosive . | . . . Electromagnetic 19 | . 7 12 Robot Hit Streak 7 | . 3 7 Robot Miss Streak 4 | . 3 4 Penetration Max . | . . . Secondary Targets . | . . . Shots Hit Robots 23 | . 5 18 Core Hits 13 | . 6 7 Critical Kills . | . . . Critical Parts Destroyed 1 | . . 1 Critical Strikes 2 | . . 2 Destroy 1 | . . 1 Blast 1 | . . 1 Melee Attacks . | . . . Impact . | . . . Slashing . | . . . Piercing . | . . . Sneak Attacks . | . . . Combat Hostiles . | . . . Follow-up Attacks . | . . . Damage Inflicted 366 | . 156 210 Guns 215 | . 75 140 Cannons 70 | . . 70 Explosions 81 | . 81 . Melee . | . . . Ramming . | . . . Kinetic 178 | . 15 163 Thermal 81 | . 81 . Explosive . | . . . Electromagnetic 107 | . 60 47 Impact . | . . . Slashing . | . . . Piercing . | . . . Highest Corruption . | . . . Average Corruption . | . . . Corruption Purged . | . . . Corruption Blocked . | . . . Overload Shots . | . . . Overflow Damage 14 | . . 14 Projectiles 14 | . . 14 Explosions . | . . . Melee . | . . . Knockbacks 1 | . . 1 Impact . | . . . Kinetic 1 | . . 1 Secondary . | . . . Self-Inflicted Damage . | . . . Shots . | . . . Rammed . | . . . Targets Rammed . | . . . Kicked . | . . . Crushed . | . . . Highest Temperature 58 | . 20 58 Average Temperature 15 | . 13 16 Received Heat Transfer 117 | . . 117 Siege Activations . | . . . Martial Activations . | . . . Shielding Activations . | . . . Robots Disrupted . | . . . Combat Hostiles . | . . . Robots Corrupted . | . . . Combat Hostiles . | . . . Parts Fried . | . . . Impact Corruptions . | . . . Robots Melted . | . . . Combat Hostiles . | . . . Parts Melted . | . . . Heat Transferred 50 | . 50 . Parts Sabotaged . | . . . Parts Stolen . | . . . Parts Stripped . | . . . Power Chain Reactions 1 | . 1 . Alert | -11 -10 -10 ------- Run | Yrd Mat Min Maximum Alert Level . | . . . Low Security (%) 100 | 100 100 100 Level 1 . | . . . Level 2 . | . . . Level 3 . | . . . Level 4 . | . . . Level 5 . | . . . High Security . | . . . Max Security . | . . . Peak Influence 92 | . 73 92 Initial 12 | . . 12 Average 27 | . 22 52 Influence Increases 268 | . 98 170 Destroy 0b10 Robot/C 160 | . 60 100 Destroy 0b10 Robot/NC 10 | . 10 . Destroy Leader 20 | . 10 10 Destroy Structure 3 | . 3 . Partial Spotted 15 | . 15 . Lose Combat Pursuer 60 | . . 60 Influence Decreases 206 | . 65 141 Entered New Map 21 | . . 21 Time Decay 125 | . 65 60 Lost Part 60 | . . 60 Squads Dispatched 1 | . 1 . Investigation . | . . . Extermination . | . . . Reinforcement 1 | . 1 . Assault . | . . . Garrison . | . . . Intercept . | . . . Searches Triggered . | . . . Construction Impeded . | . . . Haulers Reinforced . | . . . Active Scanning Responses . | . . . Cargo Convoy Interrupts . | . . . Stealth | -11 -10 -10 --------- Run | Yrd Mat Min Distress Signals . | . . . Communications Jammed . | . . . Distress Signals . | . . . Times Spotted 18 | . 7 11 Peak Tracking Total 5 | . 3 5 Tactical Retreats 2 | . . 2 Traps | -11 -10 -10 ------- Run | Yrd Mat Min Traps Triggered . | . . . Indirectly . | . . . Trap Hack Attempts . | . . . Triggered . | . . . Disarmed . | . . . Reprogrammed . | . . . Reused . | . . . Traps Extracted . | . . . Installed . | . . . Triggered . | . . . Machines | -11 -10 -10 ---------- Run | Yrd Mat Min Machines Disabled . | . . . Max in Single Turn . | . . . Machines Repaired . | . . . Machines Dismantled . | . . . Machines Sabotaged . | . . . Overloaded Fab Kills . | . . . Hacking | -11 -10 -10 --------- Run | Yrd Mat Min Machines Accessed 1 | . 1 . Terminals 1 | . 1 . Fabricators . | . . . Repair Stations . | . . . Recycling Units . | . . . Scanalyzers . | . . . Garrison Access . | . . . Total Hacks 3 | . 3 . Successful . | . . . Failed 3 | . 3 . Catastrophic . | . . . Database Lockouts . | . . . Manual . | . . . Terminals 3 | . 3 . Fabricators . | . . . Repair Stations . | . . . Recycling Units . | . . . Scanalyzers . | . . . Garrison Access . | . . . Terminal Hacks . | . . . Fabricator Hacks . | . . . Repair Station Hacks . | . . . Recycling Unit Hacks . | . . . Scanalyzer . | . . . Garrison Access Hacks . | . . . Unauthorized Hacks . | . . . Terminals . | . . . Fabricators . | . . . Repair Stations . | . . . Recycling Units . | . . . Scanalyzers . | . . . Garrison Access . | . . . Data Cores Recovered 1 | . 1 . Used . | . . . Hacking Detections 1 | . 1 . Full Trace Events 1 | . 1 . Feedback Events . | . . . Feedback Blocked . | . . . Robot Schematics Acquired . | . . . Robots Built . | . . . Authchips . | . . . Time . | . . . Total Robot Build Rating . | . . . Part Schematics Acquired . | . . . Parts Built . | . . . Authchips . | . . . Time . | . . . Total Part Build Rating . | . . . Parts Repaired . | . . . Time . | . . . Parts Recycled . | . . . Recycled Matter . | . . . Retrieved Matter . | . . . Retrieved Components . | . . . Parts Scanalyzed . | . . . Part Schematics Acquired . | . . . Parts Damaged . | . . . Bothacking | -11 -10 -10 ------------ Run | Yrd Mat Min Used RIF Installer . | . . . Robots Hacked . | . . . Non-combat . | . . . Combat . | . . . Robot Hacks Applied . | . . . Relay Couplers Released . | . . . Fabnet Peak Effective % . | . . . Robots Rewired . | . . . Allies Hacked . | . . . Hacks Repelled . | . . . Allies | -11 -10 -10 -------- Run | Yrd Mat Min Total Allies . | . . . Largest Group . | . . . Highest-Rated Group . | . . . Highest-Rated Ally . | . . . Total Orders . | . . . Ally Attacks . | . . . Total Damage . | . . . Kills . | . . . Allies Corrupted . | . . . Allies Melted . | . . . Intel | -11 -10 -10 ------- Run | Yrd Mat Min Active Infowar (turns) . | . . . Robot Analysis Total . | . . . Derelict Logs Recovered . | . . . Drone Launches . | . . . Drone Recoveries . | . . . Exploration | -11 -10 -10 ------------- Run | Yrd Mat Min Turns Passed 495 | 69 288 138 Spaces Moved 337 | 52 215 70 Core 11 | 10 . 1 Treads . | . . . Legs 326 | 42 215 69 Wheels . | . . . Hover . | . . . Flight . | . . . Fastest Speed 50 | 50 120 120 Average Speed 119 | 106 120 125 Slowest Speed 250 | 120 120 250 Overloaded Moves . | . . . Propulsion Burnouts . | . . . Robots Hopped . | . . . Potential Cave-ins . | . . . Cave-ins Triggered . | . . . Exploration Rate (%) 20 | 5 31 26 Regions Visited 2 Branch Regions 1 Pre-discovered Areas . | . . . Known Exits Taken . | . . . Unknown Exits Taken 2 | 1 1 . Scrap Searched . | . . . Spaces Dug . | . . . Terrain Destroyed 3 | . 3 . Melee . | . . . Projectile . | . . . AOE 3 | . 3 . Terrain Rammed . | . . . Walls Destroyed . | . . . Machines Disabled . | . . . Actions | -11 -10 -10 --------- Run | Yrd Mat Min Total 391 | 65 233 93 Wait . | . . . Move 335 | 51 214 70 Hop . | . . . Pick Up 18 | 9 7 2 Fast Attach 2 | 1 1 . Attach 9 | 4 1 4 Detach . | . . . Swap . | . . . Drop 3 | . 3 . Fire 24 | . 7 17 Melee . | . . . Ram . | . . . Kick . | . . . Crush . | . . . Escape Stasis . | . . . Rewire . | . . . Trap . | . . . Miscellaneous . | . . . Route ------- -11/Scrapyard -10/Materials -10/Mines History --------- Turn | Location | Event 6 | -11/Scrapyard | Discovered new exit (range 15) 70 | -11/Scrapyard | Entered Materials 239 | -10/Materials | Discovered new exit (range 11) 318 | -10/Materials | Build established: Mutant 358 | -10/Materials | Entered Mines 423 | -10/Mines | Core integrity fell below 50% 446 | -10/Mines | Assembled infested the area 487 | -10/Mines | Met 8R-AWN 496 | -10/Mines | Core integrity fell below 20% 496 | -10/Mines | Destroyed by D-53 Grenadier with Mini Grenade Launcher Last Messages --------------- 00491_ HV Slug penetrates as-62390. 00491_ as-62390 suffers critical hit (Destroy). 00491_ HV Slug penetrates Wall. 00491_ HV Slug penetrates as-62390. 00491_ as-62390 destroyed. 00491_ HV Slug penetrates Wall. 00494_ HV Slug penetrates as-30912. 00494_ HV Slug penetrates as-46573. 00494_ HV Slug penetrates as-30912. 00494_ as-30912 suffers critical hit (Destroy). 00494_ HV Slug penetrates as-46573. 00494_ K-01 Serf collects debris. 00494_ as-57629 destroyed. 00494_ Aluminum Leg destroyed. 00496_ HV Slug penetrates D-53 Grenadier. 00496_ D-53 Grenadier suffers critical hit (Destroy). 00496_ HV Slug penetrates Wall. 00496_ HV Slug penetrates D-53 Grenadier. 00496_ HV Slug penetrates Wall. Map ----- +----------------------------------------------------+ | ????????????????????????????????????????????? | | ????????######??????????????????????????????? | | ???????## ##?????????????????????????????? | | ??????## #?????????????????????????????? | | ####### #?????????????????????????????? | | ## ####??????????????????????????? | | #??????????????????????????? | | ###### #??????????????????????????? | | ## ##????# #??????????????????????????? | | ###### ##?????# #??????????????????????????? | | #????####??????# #??????????????????????????? | | #??????????????# #??????????????????????????? | | ##?????????????# #??????##??????????????????? | | *##????????????# #?##### ##?#???????????????? | | %=#???# ??????# ### # #???????????????? | | =%#??# ???# #? #???????????????? | | [##?? ###### ### #???????????????? | | ##?? " ## #;#???????????????? | | #??????? "% ## ;# ##??????????????? | | ??????????????# ; #??????????????? | | ??????????????# dd ##??????????????? | | ??????????????## #??????????????? | | ???????????????### #??????????????? | | ????????????????## #??????????????? | | ????????????????# ##?????????????? | | ????????????????#### @ #?????????????? | | ???????????????????## < #????????????? | | ????????????????????# g #????????????? | | ????????????????????#### a aa% #???????????? | | ???????????????????????####%% #??????????? | | ??????????????????????????? a ?????????? | | ??????????????????????????? ???????? | | ???????????????????????????? ??????? | | ???????????????????????????? k ??????? | | ????????????????????????????# ###$ ??????? | | ?????????????????????????????##;##??????????? | | ??????????????????????????????? #???????????? | | ????????????????????????????????#???????????? | | ????????????????????????????????????????????? | | ????????????????????????????????????????????? | | ????????????????????????????????????????????? | | ????????????????????????????????????????????? | | ????????????????????????????????????????????? | | ????????????????????????????????????????????? | | ????????????????????????????????????????????? | | ????????????????????????????????????????????? | | ????????????????????????????????????????????? | | ????????????????????????????????????????????? | | ????????????????????????????????????????????? | | ????????????????????????????????????????????? | +----------------------------------------------------+ Best States ------------- Heat Dissipation 25 Energy Generation 10 Energy Capacity 250 Matter Stores 300 Matter Capacity 300 Sight Range 16 Terrain Scan Density 10 Evasion (%) 55 Item Schematics ----------------- None Robot Schematics ------------------ None Fabricated ------------ Nothing Repaired ---------- Nothing Alien Tech Used ----------------- None Achievements -------------- None Challenges ------------ None Game ------ Seed CoolantLegBuckler Manual? 0 Play Time 00:08:52 Cumulative 1.3 hours Start 2025.07.10 @ 11:56:55 End 2025.07.10 @ 12:04:14 Sessions 1 Manual Loads 0 Difficulty Rogue Special Mode None Game No. 5 Rogue 5 Adventurer 0 Explorer 0 Win Type - Total 0 Types 0/0/0/0/0/0/0/0/0/0 Lore% 5 Gallery% 3 Achievement% 5 Wizard Run 0 Options --------- Layout 1 ASCII 0 Keyboard 0 Movement Mouse Keybinds 0 Fullscreen 1 Font 24/Smallcaps Map View 50x35 Zoom Use 0% Tactical HUD 1 Map Filters NONE Filters NONE Steam 1 RUN: 2189649a-cfaf-4f71-ab95-463ab3ff731f